bitfinex-derivatives/quotes_SOLF0:USTF0_20260218
["timestamp","ask_amount","ask_price","bid_price","bid_amount"]
[1771444808049,69.59124114,80.901,80.856,11.1358]
[1771444808240,69.59124114,80.901,80.83,8.38215395]
[1771444808648,69.58686428,80.891,80.842,11.1377]
[1771444808850,69.58686428,80.891,80.81,8.38215395]
[1771444809049,69.58686428,80.889,80.81,8.38215395]
[1771444809348,69.58686428,80.883,80.83,8.38215395]
[1771444809546,69.58686428,80.883,80.81,8.38215395]
[1771444809948,69.84467954,80.87,80.815,11.1415]
[1771444810147,78.22683349,80.87,80.79,8.38215395]
[1771444810752,69.84081535,80.869,80.815,11.1414]
[1771444810940,69.84081535,80.869,80.789,77.86]
[1771444811140,69.84081535,80.869,80.782,77.88]
[1771444811341,95.86215395,80.87,80.782,77.88]
[1771444811342,69.84081535,80.859,80.782,77.88]
[1771444811543,69.84081535,80.859,80.78,8.38215395]
[1771444811753,69.84081535,80.859,80.805,11.1428]
[1771444812350,69.91570813,80.848,80.76,8.39579291]
[1771444812652,69.91570813,80.848,80.78,8.39579291]
[1771444812953,8.39579291,80.88,80.761,77.88]
[1771444812954,8.39579291,80.88,80.8,8.39579291]
[1771444813649,77.88,80.887,80.831,11.1392]
[1771444814750,77.88,80.887,80.8,86.27579291]
[1771444814751,87.58,80.91,80.82,8.39579291]
[1771444814949,8.39579291,80.94,80.799,173.3456]
[1771444814950,59.95773258,80.909,80.84,8.39579291]
[1771444815358,59.95773258,80.891,80.83,8.39579291]
[1771444815955,59.95773258,80.891,80.848,11.1369]
[1771444816857,59.95773258,80.891,80.856,11.1358]
[1771444817756,59.95773258,80.891,80.847,11.137]
[1771444818156,59.95773258,80.891,80.811,22.2841]
[1771444818357,59.95773258,80.891,80.843,11.1375]
[1771444818859,59.96597229,80.889,80.789,45.27941889]
[1771444819157,59.96597229,80.889,80.8,8.39579291]
[1771444819354,59.96597229,80.889,80.842,11.1378]
[1771444819959,59.94302195,80.886,80.832,11.1391]
[1771444820152,59.94302195,80.886,80.82,8.39579291]
[1771444820652,59.93911469,80.883,80.829,11.1395]
[1771444821357,59.93911469,80.879,80.8,8.39579291]
[1771444821753,59.93911469,80.879,80.82,8.39579291]
[1771444822654,8.39579291,80.93,80.84,8.39579291]
[1771444822960,37.22,80.939,80.84,8.39579291]
[1771444823155,77.9,80.934,80.841,77.9]
[1771444823356,87.64,80.933,80.84,86.29579291]
[1771444823657,8.39579291,80.96,80.86,8.39579291]
[1771444823864,77.9,80.959,80.861,77.9]
[1771444824050,87.64,80.958,80.86,8.39579291]
[1771444824361,87.66,80.957,80.86,8.39579291]
[1771444824747,50.40400858,80.944,80.889,11.1313]
[1771444824952,50.40400858,80.944,80.88,8.39579291]
[1771444825560,50.40400858,80.944,80.89,11.1311]
[1771444825858,50.59526731,80.937,80.832,22.98941889]
[1771444826161,50.59526731,80.935,80.84,8.39579291]
[1771444826363,50.59526731,80.909,80.84,8.39579291]
[1771444826751,50.59147095,80.907,80.845,11.1373]
[1771444826971,50.59147095,80.907,80.82,8.39579291]
[1771444827660,50.59147095,80.907,80.84,8.39579291]
[1771444828054,50.59147095,80.907,80.874,11.1333]
[1771444828358,87.86,80.945,80.86,8.39579291]
[1771444828757,11.124,80.942,80.889,11.1313]
[1771444829160,87.88,80.941,80.889,11.1313]
[1771444830266,40.24579951,80.94,80.889,11.1313]
[1771444830770,40.24107238,80.937,80.889,11.1313]
[1771444831465,40.24107238,80.931,80.878,11.1327]
[1771444831666,40.24766321,80.929,80.842,22.2753]
[1771444831866,40.24766321,80.927,80.821,22.2812]
[1771444832054,40.24766321,80.901,80.82,8.39579291]
[1771444832964,40.24306206,80.895,80.843,11.1376]
[1771444833556,40.24306206,80.895,80.82,8.39579291]
[1771444834565,40.24306206,80.895,80.82,31.3852118]
[1771444835074,40.24306206,80.895,80.82,109.2652118]
[1771444835568,40.24306206,80.895,80.82,86.27579291]
[1771444836069,40.24306206,80.895,80.82,8.39579291]
[1771444836368,40.24306206,80.895,80.82,86.27579291]
[1771444836569,40.24306206,80.895,80.824,22.98941889]
[1771444836772,40.24306206,80.895,80.829,11.1395]
[1771444838967,40.24306206,80.895,80.84,8.39579291]
[1771444839168,40.24306206,80.895,80.84,19.53379291]
[1771444839466,40.34748023,80.913,80.84,8.39579291]
[1771444839667,40.34748023,80.913,80.86,8.39579291]
[1771444841270,40.34748023,80.913,80.84,8.39579291]
[1771444841772,40.34748023,80.913,80.842,22.98941889]
[1771444842366,40.34748023,80.913,80.843,12.37]
[1771444842769,40.34748023,80.913,80.855,11.1359]
[1771444843470,40.34748023,80.913,80.85,77.88]
[1771444844274,40.34748023,80.913,80.854,11.136]
[1771444846373,40.34748023,80.913,80.842,22.98941889]
[1771444846568,87.9,80.936,80.84,8.39579291]
[1771444846569,40.44194698,80.911,80.847,11.1371]
[1771444847374,11.1297,80.901,80.84,8.39579291]
[1771444847580,40.43851027,80.9,80.825,12.37]
[1771444848079,40.43851027,80.9,80.811,77.88]
[1771444848080,40.59666785,80.898,80.811,77.88]
[1771444848270,40.59666785,80.896,80.809,77.88]
[1771444848670,40.59357569,80.889,80.8,8.39579291]
[1771444848870,40.59357569,80.888,80.801,77.88]
[1771444849278,40.59357569,80.888,80.802,22.98941889]
[1771444849672,8.39579291,80.89,80.818,11.1411]
[1771444849673,40.5610468,80.881,80.818,11.1411]
[1771444850678,40.5610468,80.881,80.825,11.14]
[1771444851076,40.5610468,80.881,80.803,22.98941889]
[1771444851379,40.5610468,80.881,80.824,11.1402]
[1771444852070,40.5610468,80.881,80.799,77.88]
[1771444852071,40.5610468,80.881,80.82,8.39579291]
[1771444852769,40.69793649,80.896,80.849,11.1368]
[1771444852979,40.69793649,80.896,80.84,8.39579291]
[1771444853166,87.94,80.938,80.841,77.88]
[1771444853371,87.94,80.938,80.87,11.1339]
[1771444853568,87.94,80.937,80.87,11.1339]
[1771444853772,87.94,80.937,80.86,8.39579291]
[1771444853990,11.1241,80.942,80.89,11.1311]
[1771444854173,11.41669016,80.987,80.84,22.2762]
[1771444854174,8.39579291,80.97,80.88,8.39579291]
[1771444854370,8.39579291,81.0,80.84,22.2762]
[1771444854371,8.39579291,80.95,80.86,8.39579291]
[1771444854571,86.27579291,80.95,80.86,86.27579291]
[1771444855179,31.21797959,80.949,80.86,8.39579291]
[1771444855381,31.21797959,80.947,80.86,8.39579291]
[1771444855779,31.20742785,80.942,80.86,8.39579291]
[1771444855981,31.20742785,80.941,80.86,8.39579291]
[1771444857180,31.20742785,80.941,80.891,11.1309]
[1771444857581,31.20829793,80.939,80.854,22.98941889]
[1771444857787,8.39579291,80.94,80.871,11.1337]
[1771444857788,31.20829793,80.93,80.871,11.1337]
[1771444858282,31.20829793,80.909,80.83,31.3852118]
[1771444859384,31.20829793,80.909,80.862,11.135]
[1771444860477,8.39579291,80.92,80.853,11.1362]
[1771444860478,31.19868112,80.906,80.853,11.1362]
[1771444860679,31.19868112,80.906,80.83,8.39579291]
[1771444861083,31.19868112,80.906,80.837,11.1384]
[1771444861382,31.19569506,80.904,80.837,11.1384]
[1771444861588,31.19569506,80.904,80.837,11.1385]
[1771444862188,31.19569506,80.904,80.844,11.1375]
[1771444862485,31.20438597,80.894,80.83,8.39579291]
[1771444862983,31.20438597,80.894,80.823,11.1403]
[1771444863183,31.20438597,80.891,80.83,8.39579291]
[1771444863384,31.20438597,80.891,80.833,22.98941889]
[1771444863686,31.20438597,80.891,80.839,11.1381]
[1771444864088,31.20438597,80.891,80.846,11.1372]
[1771444864593,31.25740751,80.909,80.846,11.1372]
[1771444865485,31.25740751,80.906,80.846,11.1372]
[1771444865791,31.25740751,80.906,80.838,11.1382]
[1771444865985,31.25429508,80.897,80.833,100.86941889]
[1771444866285,31.25429508,80.897,80.834,22.98941889]
[1771444866689,31.25429508,80.897,80.844,11.1374]
[1771444867095,31.25162501,80.913,80.85,8.39579291]
[1771444867291,31.25162501,80.913,80.83,8.39579291]
[1771444867292,31.25162501,80.949,80.87,19.52969291]
[1771444867491,31.25162501,80.949,80.89,8.39579291]
[1771444867695,31.24529029,80.987,80.89,8.39579291]
[1771444867884,31.24529029,80.985,80.91,8.39579291]
[1771444868694,8.39579291,80.99,80.91,8.39579291]
[1771444868695,31.24267565,80.976,80.912,11.1281]
[1771444868879,31.24267565,80.976,80.91,8.39579291]
[1771444869282,31.24267565,80.976,80.921,11.1269]
[1771444871091,31.24267565,80.976,80.93,11.1256]
[1771444871289,31.24267565,80.976,80.93,8.39579291]
[1771444871688,31.24267565,80.976,80.949,11.123]
[1771444871889,30.80488308,81.007,80.949,11.123]
[1771444872688,11.1154,81.005,80.949,11.123]
[1771444872892,30.80178662,81.004,80.957,11.122]
[1771444873089,30.80178662,81.004,80.93,8.36535598]
[1771444873288,30.80178662,81.002,80.93,8.36535598]
[1771444874000,30.80178662,81.002,80.959,11.1216]
[1771444874295,30.6696257,81.0,80.92,8.36535598]
[1771444874802,30.6696257,81.0,80.921,11.1269]
[1771444874999,30.66642204,80.995,80.921,11.1269]
[1771444875497,30.66642204,80.995,80.92,8.36535598]
[1771444875995,30.78498913,80.991,80.92,8.36535598]
[1771444876386,11.1184,80.983,80.92,8.36535598]
[1771444876590,30.78206307,80.982,80.92,8.36535598]
[1771444876998,30.78206307,80.982,80.93,11.1256]
[1771444880400,30.78206307,80.982,80.938,11.1245]
[1771444880805,30.78206307,80.982,80.92,8.36535598]
[1771444881996,30.78206307,80.982,80.9,8.36535598]
[1771444882201,30.78206307,80.982,80.9,86.18535598]
[1771444882603,30.78206307,80.982,80.92,8.36535598]
[1771444882905,8.36535598,81.0,80.92,8.36535598]
[1771444882906,108.66059054,81.019,80.92,8.36535598]
[1771444883107,30.84059054,81.018,80.92,8.36535598]
[1771444883304,30.84059054,81.01,80.948,11.1232]
[1771444883511,30.84059054,81.01,80.94,8.36535598]
[1771444883709,30.84059054,81.01,80.962,11.1212]
[1771444885405,30.84059054,81.01,80.977,11.1191]
[1771444885601,30.84059054,81.01,80.96,8.36535598]
[1771444886305,8.36535598,81.06,80.961,8.99000862]
[1771444886502,8.36535598,81.06,80.981,8.99000862]
[1771444886702,2.14807522,81.07,81.0,8.36535598]
[1771444887010,8.36535598,81.08,81.001,8.99566869]
[1771444887402,11.1066,81.07,81.011,11.1145]
[1771444887603,8.36535598,81.08,81.011,11.1145]
[1771444887803,8.36535598,81.08,81.001,8.99566869]
[1771444888305,77.8,81.092,80.958,173.0055]
[1771444888306,22.00772281,81.141,81.021,9.49050106]
[1771444888498,8.36535598,81.1,81.021,9.49050106]
[1771444888698,8.36535598,81.1,81.02,8.36535598]
[1771444888699,22.00772281,81.098,81.004,9.49803153]
[1771444889210,22.00772281,81.091,81.027,11.1123]
[1771444889901,22.00772281,81.079,81.0,8.36535598]
[1771444890508,22.00772281,81.078,81.0,8.36535598]
[1771444891511,22.00772281,81.066,81.0,8.36535598]
[1771444892012,22.00772281,81.066,81.013,11.1142]
[1771444893314,22.00772281,81.064,81.0,8.36535598]
[1771444893508,22.00772281,81.059,80.986,9.29367067]
[1771444893908,22.00772281,81.046,80.986,9.29367067]
[1771444894507,22.00772281,81.046,80.987,11.1178]
[1771444894709,22.00772281,81.046,80.99,18.50777291]
[1771444895011,87.24,81.07,80.991,10.14241693]
[1771444895204,11.1071,81.066,80.995,11.1167]
[1771444895409,22.00772281,81.065,80.996,10.20930425]
[1771444895809,22.00772281,81.062,80.997,21.11773553]
[1771444897406,22.00772281,81.062,80.998,10.13913521]
[1771444897716,22.00772281,81.062,80.997,11.1165]
[1771444897717,22.00772281,81.059,81.005,9.732379]
[1771444899118,22.00772281,81.059,81.007,11.115]
[1771444900715,11.1083,81.057,81.005,9.732379]
[1771444900913,22.00772281,81.056,81.005,9.732379]
[1771444901623,22.00772281,81.056,81.006,10.02148665]
[1771444902121,11.1073,81.065,81.006,10.02148665]
[1771444902322,22.00772281,81.07,81.016,10.10349899]
[1771444902622,22.00772281,81.07,81.0,10.10947204]
[1771444902821,22.00772281,81.07,80.99,8.36535598]
[1771444902822,8.36535598,81.07,80.99,8.36535598]
[1771444903019,22.00772281,81.069,80.99,8.36535598]
[1771444903428,22.00772281,81.057,80.99,8.36535598]
[1771444903725,22.00772281,81.057,80.991,10.34341865]
[1771444904724,22.00772281,81.057,80.991,21.46061865]
[1771444906229,11.1092,81.05,80.991,10.34341865]
[1771444906518,22.79306131,81.049,80.977,10.41291516]
[1771444907512,22.79306131,81.049,80.991,10.47041983]
[1771444908825,22.79306131,81.049,80.997,11.1164]
[1771444909033,22.79306131,81.049,80.977,10.5892364]
[1771444909224,37.22,81.101,80.977,10.5892364]
[1771444909225,22.79306131,81.046,80.977,10.5892364]
[1771444910833,22.79306131,81.039,80.983,11.1183]
[1771444911525,22.79306131,81.039,80.989,11.1175]
[1771444914025,22.79306131,81.039,80.977,10.5892364]
[1771444914223,22.79306131,81.039,80.97,8.36535598]
[1771444914224,22.79306131,81.053,80.991,10.60159528]
[1771444916826,22.79306131,81.08,81.011,10.71516496]
[1771444917828,25.36830378,81.073,81.033,11.1115]
[1771444918232,25.36830378,81.073,81.01,8.36535598]
[1771444918233,25.36830378,81.073,81.024,10.76881755]
[1771444918527,25.36830378,81.073,81.01,22.2292]
[1771444918735,25.36830378,81.073,81.009,10.77411505]
[1771444919127,25.36830378,81.071,81.028,11.1121]
[1771444919324,25.36830378,81.071,81.009,10.77411505]
[1771444919929,25.36830378,81.067,81.026,11.1124]
[1771444920333,25.36830378,81.067,80.978,11.40656274]
[1771444920532,25.36830378,81.042,80.978,11.40656274]
[1771444921436,25.36830378,81.042,80.996,11.1166]
[1771444922138,25.36830378,81.039,80.978,11.40656274]
[1771444922837,25.36830378,81.039,80.996,11.1166]
[1771444923238,25.36830378,81.039,80.97,8.36535598]
[1771444923438,25.36830378,81.039,80.971,22.67170541]
[1771444924125,36.47900378,81.039,80.985,11.118]
[1771444924331,25.36830378,81.038,80.96,8.36535598]
[1771444925332,25.36830378,81.023,80.962,11.1212]
[1771444925942,25.36830378,81.021,80.969,11.1202]
[1771444926329,37.22,81.049,80.96,8.36535598]
[1771444926330,25.36830378,81.019,80.96,11.1215]
[1771444926736,25.36830378,81.019,80.954,22.88537353]
[1771444927330,25.36830378,81.019,80.94,86.10535598]
[1771444927331,25.36830378,81.019,80.961,23.17998281]
[1771444928836,25.36830378,81.012,80.966,11.1207]
[1771444929038,25.36830378,81.012,80.961,23.17998281]
[1771444929535,25.36830378,81.012,80.972,11.1198]
[1771444930334,25.36830378,81.01,80.961,23.17998281]
[1771444931338,25.36830378,81.007,80.952,11.1226]
[1771444932338,8.36535598,81.03,80.946,23.46171413]
[1771444932339,25.36830378,80.99,80.946,23.46171413]
[1771444933340,25.36830378,80.99,80.947,11.1233]
[1771444934842,25.36830378,81.006,80.946,23.46171413]
[1771444935142,23.95909645,81.022,80.958,23.63884209]
[1771444935339,23.95909645,81.022,80.98,11.1188]
[1771444935541,23.95909645,81.022,80.962,23.65616601]
[1771444936042,23.95909645,81.022,80.963,23.70303743]
[1771444936242,23.95909645,81.038,80.972,23.70303743]
[1771444936440,23.95909645,81.053,80.991,23.70303743]
[1771444936641,23.95909645,81.053,80.994,46.69724634]
[1771444936837,23.95909645,81.053,80.995,23.70782745]
[1771444937237,186.32986597,81.172,80.99,8.36635583]
[1771444937238,23.95909645,81.075,80.998,22.98941889]
[1771444937446,23.95909645,81.075,80.999,23.75469]
[1771444937840,23.95909645,81.075,81.019,11.1134]
[1771444938440,23.95909645,81.075,81.014,23.8016767]
[1771444938637,23.95909645,81.075,81.021,23.85241295]
[1771444939438,23.95909645,81.075,81.043,11.11]
[1771444939642,23.95909645,81.095,81.043,11.11]
[1771444941143,23.95909645,81.091,81.043,11.11]
[1771444942042,23.95909645,81.089,81.035,11.1113]
[1771444943746,23.95909645,81.083,81.035,11.1113]
[1771444945146,23.95909645,81.083,81.021,23.85241295]
[1771444946448,11.1007,81.113,81.052,11.1089]
[1771444946650,8.36635583,81.13,81.02,22.98941889]
[1771444946651,8.36635583,81.13,81.029,25.13998812]
[1771444946851,77.74,81.129,81.029,25.13998812]
[1771444947051,11.1033,81.094,81.036,11.1111]
[1771444947245,45.58635583,81.11,81.02,8.36635583]
[1771444947441,77.74,81.109,81.034,11.1114]
[1771444947642,77.74,81.109,81.02,8.36635583]
[1771444948151,11.1044,81.086,81.02,8.36635583]
[1771444948345,23.95909645,81.085,81.02,8.36635583]
[1771444949250,23.95909645,81.082,81.025,11.1125]
[1771444949555,11.1105,81.041,80.99,11.1173]
[1771444949743,23.95909645,81.04,80.982,25.13998812]
[1771444950046,23.95909645,81.04,80.939,30.23571794]
[1771444950047,23.95909645,81.029,80.93,31.35577472]
[1771444950249,23.95909645,81.007,80.933,25.13998812]
[1771444950644,23.95909645,81.027,80.967,25.13998812]
[1771444950849,23.95909645,81.027,80.971,25.13998812]
[1771444951644,23.95909645,81.027,80.978,11.119]
[1771444952754,23.95909645,81.025,80.971,25.13998812]
[1771444953653,23.95909645,81.025,80.973,25.13998812]
[1771444954444,11.1128,81.024,80.973,25.13998812]
[1771444955149,23.95909645,81.025,80.973,25.13998812]
[1771444955750,23.95909645,81.025,80.964,11.1209]
[1771444956654,11.1137,81.018,80.964,11.1209]
[1771444957250,11.1149,81.009,80.956,25.13998812]
[1771444957846,23.95909645,81.025,80.956,25.13998812]
[1771444958754,23.95909645,81.009,80.957,11.1219]
[1771444959247,23.95909645,81.009,80.95,8.36635583]
[1771444959248,23.95909645,81.009,80.958,25.13998812]
[1771444960056,23.95909645,81.009,80.941,25.13998812]
[1771444960446,23.95909645,80.997,80.941,36.26398812]
[1771444960642,23.95909645,80.997,80.925,25.13998812]
[1771444961049,23.95909645,80.996,80.937,11.1246]
[1771444961346,23.95909645,80.996,80.925,25.13998812]
[1771444961853,23.95909645,80.979,80.91,22.98941889]
[1771444962046,23.95909645,80.979,80.909,25.13998812]
[1771444962647,23.95909645,80.979,80.928,25.13998812]
[1771444963746,23.95909645,80.979,80.928,36.26588812]
[1771444964440,23.95909645,80.975,80.928,11.1259]
[1771444964646,23.95909645,81.0,80.912,25.13998812]
[1771444965048,23.95909645,81.0,80.914,24.6323169]
[1771444965247,24.40618848,80.998,80.934,11.1251]
[1771444965542,24.40618848,80.998,80.935,24.6323169]
[1771444965948,24.40618848,80.998,80.944,11.1237]
[1771444966453,24.40618848,80.998,80.92,24.6323169]
[1771444967154,11.1175,80.99,80.929,11.1257]
[1771444967454,24.40618848,80.989,80.929,11.1257]
[1771444968656,24.40618848,80.989,80.937,24.6323169]
[1771444969652,24.40618848,80.989,80.943,11.1238]
[1771444970353,24.40618848,80.989,80.921,24.6323169]
[1771444970558,24.40618848,80.989,80.911,24.6323169]
[1771444970856,24.40618848,80.989,80.939,24.6323169]
[1771444970857,11.118,80.986,80.939,24.6323169]
[1771444971558,77.78,81.011,80.93,8.36635583]
[1771444971559,11.1169,80.994,80.946,24.6323169]
[1771444971960,11.12,80.972,80.93,11.1256]
[1771444972159,24.40618848,80.993,80.911,24.6323169]
[1771444973753,11.119,80.979,80.937,11.1246]
[1771444973955,11.119,80.979,80.929,24.6323169]
[1771444975759,11.119,80.979,80.935,11.1249]
[1771444976058,11.119,80.979,80.91,86.14635583]
[1771444976059,24.40618848,80.972,80.911,24.6323169]
[1771444976847,24.40618848,80.987,80.913,24.6323169]
[1771444977452,24.40618848,81.009,80.96,24.6323169]
[1771444978452,25.90699008,81.045,80.96,24.6323169]
[1771444978647,37.08,81.046,80.95,8.36635583]
[1771444978648,25.90699008,81.043,80.95,8.36635583]
[1771444978851,25.90699008,81.043,80.951,26.9402024]
[1771444979259,25.90699008,81.017,80.967,11.1205]
[1771444980359,25.90699008,81.017,80.973,11.1196]
[1771444980556,25.90699008,81.017,80.951,26.9402024]
[1771444980755,25.90699008,81.049,80.971,26.9402024]
[1771444980959,25.90699008,81.035,80.987,11.1178]
[1771444981451,25.90699008,81.031,80.978,11.119]
[1771444981859,25.90699008,81.031,80.971,26.9402024]
[1771444982252,25.90699008,81.048,80.98,8.36635583]
[1771444982452,25.90699008,81.048,80.981,26.9402024]
[1771444983052,25.90699008,81.048,80.98,8.36635583]
[1771444983762,25.90699008,81.027,80.966,26.9402024]
[1771444984661,25.90699008,81.017,80.951,26.9402024]
[1771444985756,25.90699008,81.015,80.974,11.1196]
[1771444986153,11.1142,81.014,80.974,11.1196]
[1771444986355,25.90699008,81.013,80.974,11.1196]
[1771444987960,25.90699008,81.013,80.967,11.1206]
[1771444988356,25.90699008,81.004,80.959,11.1216]
[1771444988854,25.90699008,81.004,80.971,11.12]
[1771444990467,25.90699008,81.004,80.95,8.36635583]
[1771444990468,25.90699008,81.004,80.963,11.121]
[1771444992064,11.1161,81.0,80.955,11.1222]
[1771444992271,25.90699008,81.004,80.937,26.9402024]
[1771444993563,25.90699008,80.987,80.942,11.124]
[1771444994569,25.90699008,80.983,80.942,11.124]
[1771444994775,25.90699008,80.983,80.937,26.9402024]
[1771444994970,25.90699008,80.983,80.932,11.1253]
[1771444995272,25.90699008,80.983,80.923,27.33943985]
[1771444995669,11.1163,80.999,80.954,11.1223]
[1771444996273,26.43620663,80.998,80.954,11.1223]
[1771444997076,26.43620663,80.998,80.96,11.1215]
[1771444997280,11.1149,81.009,80.96,27.33943985]
[1771444997480,26.43620663,81.013,80.96,27.33943985]
[1771444997676,26.43620663,81.013,80.94,27.33943985]
[1771444998779,26.43620663,81.002,80.96,11.1215]
[1771444999574,11.1138,81.017,80.973,27.33943985]
[1771444999880,26.43620663,81.018,80.973,27.33943985]
[1771445000177,26.43620663,81.018,80.95,8.36911025]
[1771445000178,26.43620663,81.018,80.951,27.33943985]
[1771445000773,11.1148,81.01,80.965,11.1208]
[1771445000979,26.43620663,81.018,80.951,27.33943985]
[1771445001378,11.1146,81.011,80.971,11.12]
[1771445003170,26.43620663,81.033,80.979,27.33943985]
[1771445003370,26.43620663,81.065,80.979,27.33943985]
[1771445003577,26.43620663,81.063,80.979,27.33943985]
[1771445003773,26.43620663,81.034,80.979,27.33943985]
[1771445004174,11.113,81.023,80.98,11.1187]
[1771445004378,26.43620663,81.034,80.959,27.33943985]
[1771445005283,11.1143,81.013,80.968,11.1204]
[1771445005582,11.1143,81.013,80.968,38.45983985]
[1771445005778,11.1143,81.013,80.968,27.33943985]
[1771445005984,11.1133,81.02,80.974,11.1195]
[1771445007388,26.43620663,81.03,80.974,11.1195]
[1771445008078,26.43620663,81.03,80.98,11.1187]
[1771445008581,26.43620663,81.044,80.981,27.33943985]
[1771445008786,26.43620663,81.044,80.972,22.90565659]
[1771445008989,26.43620663,81.044,80.967,27.33943985]
[1771445009285,26.43620663,81.043,80.967,27.33943985]
[1771445009781,26.43620663,81.027,80.973,11.1197]
[1771445009984,26.43620663,81.027,80.95,20.73911025]
[1771445009985,26.43620663,81.027,80.954,27.33943985]
[1771445010383,26.43620663,81.021,80.954,27.33943985]
[1771445010576,26.43620663,81.021,80.955,27.33943985]
[1771445010887,26.43620663,81.035,80.985,11.1181]
[1771445011687,26.43620663,81.033,80.985,11.1181]
[1771445011885,26.43620663,81.033,80.981,27.33943985]
[1771445012080,26.43620663,81.033,80.977,11.1191]
[1771445012587,78.14,81.047,80.951,27.33943985]
[1771445012588,26.43620663,81.019,80.951,27.33943985]
[1771445013885,26.43620663,81.01,80.951,27.33943985]
[1771445014586,37.55090663,81.01,80.969,11.1203]
[1771445014787,26.43620663,81.027,80.966,27.33943985]
[1771445014985,26.43620663,81.027,80.971,27.33943985]
[1771445016396,11.111,81.037,80.971,27.33943985]
[1771445016691,26.43620663,81.059,80.991,27.33943985]
[1771445017186,26.43620663,81.059,81.005,27.33943985]
[1771445018085,26.43620663,81.059,80.991,27.33943985]
[1771445018689,26.43620663,81.047,80.991,27.33943985]
[1771445019494,26.43620663,81.047,81.002,11.1157]
[1771445020287,26.43620663,81.047,81.009,11.1148]
[1771445020488,26.43620663,81.047,80.991,27.33943985]
[1771445020890,26.43620663,81.047,81.007,11.115]
[1771445021197,26.43620663,81.047,80.991,27.33943985]
[1771445021388,85.26,81.066,81.034,11.1113]
[1771445021389,26.43620663,81.065,81.034,11.1113]
[1771445021593,8.36911025,81.11,81.022,27.33943985]
[1771445021900,77.76,81.109,81.022,27.33943985]
[1771445022094,11.1027,81.098,81.046,11.1096]
[1771445023191,85.24,81.108,81.037,27.33943985]
[1771445023192,11.1015,81.107,81.056,11.1083]
[1771445023394,8.36911025,81.12,81.037,27.33943985]
[1771445023689,26.43620663,81.119,81.037,27.33943985]
[1771445024191,26.43620663,81.107,81.037,27.33943985]
[1771445024689,26.43620663,81.105,81.056,11.1083]
[1771445025792,27.30794994,81.099,81.056,11.1083]
[1771445027196,27.30794994,81.097,81.046,11.1096]
[1771445027495,27.30794994,81.097,81.037,27.33943985]
[1771445027992,27.30794994,81.097,81.06,11.1077]
[1771445028795,27.30794994,81.115,81.051,25.48622232]
[1771445029794,27.30794994,81.113,81.068,11.1066]
[1771445031403,27.30794994,81.113,81.051,25.48622232]
[1771445031992,8.36911025,81.14,81.051,25.48622232]
[1771445031993,27.30794994,81.109,81.06,3.11482648]
[1771445032407,27.30794994,81.106,81.067,11.1067]
[1771445034398,27.30794994,81.106,81.074,11.1059]
[1771445035303,30.42277642,81.12,81.074,11.1059]
[1771445035615,27.30794994,81.135,81.09,3.11482648]
[1771445035912,27.30794994,81.119,81.07,3.11482648]
[1771445036807,27.30794994,81.118,81.077,11.1055]
[1771445037311,27.30794994,81.118,81.07,3.11482648]
[1771445037504,27.30794994,81.126,81.084,11.1045]
[1771445038527,27.44237634,81.124,81.08,3.11482648]
[1771445039116,27.44237634,81.124,81.09,3.11482648]
[1771445040010,27.44237634,81.124,81.071,25.48622232]
[1771445040814,27.44237634,81.124,81.092,11.1033]
[1771445041714,10.48360217,81.16,81.036,28.05009271]
[1771445041715,27.44237634,81.122,81.036,28.05009271]
[1771445041917,27.44237634,81.122,81.041,28.05009271]
[1771445042415,77.7,81.126,81.041,28.05009271]
[1771445042416,27.44237634,81.119,81.041,28.05009271]
[1771445042610,37.08,81.159,81.061,28.05009271]
[1771445042611,27.44237634,81.136,81.061,28.05009271]
[1771445043005,27.44237634,81.119,81.076,11.1056]
[1771445043210,27.44237634,81.119,81.061,28.05009271]
[1771445043411,27.44237634,81.119,81.047,28.05009271]
[1771445043606,84.9,81.118,81.047,28.05009271]
[1771445043919,27.44237634,81.117,81.047,28.05009271]
[1771445044412,11.104,81.089,81.047,28.05009271]
[1771445044614,27.44237634,81.088,80.984,28.05009271]
[1771445044811,27.44237634,81.086,80.991,28.05009271]
[1771445045210,27.44237634,81.086,81.027,28.05009271]
[1771445045806,11.1045,81.085,81.04,11.1105]
[1771445046025,38.54687634,81.085,81.04,11.1105]
[1771445050115,27.44237634,81.076,81.009,28.05009271]
[1771445050813,27.44237634,81.071,81.024,11.1127]
[1771445051212,27.44237634,81.069,81.009,28.05009271]
[1771445052817,27.44237634,81.069,81.028,11.1121]
[1771445054120,27.44237634,81.06,81.009,28.05009271]
[1771445054315,27.44237634,81.081,81.009,28.05009271]
[1771445054819,84.96,81.082,81.009,28.05009271]